bitfinex/quotes_SOLUSD_20250814
["timestamp","ask_amount","ask_price","bid_price","bid_amount"]
[1755156104475,15.10621557,205.6,205.59,9.60951558]
[1755156104657,79.1,205.63,205.59,9.60951558]
[1755156104858,15.10621557,205.62,205.6,9.60951558]
[1755156105269,15.10621557,205.62,205.61,9.60951558]
[1755156105853,15.10621557,205.62,205.6,9.60951558]
[1755156106980,15.81621557,205.62,205.6,9.60951558]
[1755156107179,0.71,205.65,205.61,9.60951558]
[1755156107482,15.10621557,205.66,205.63,9.60951558]
[1755156107868,15.81621557,205.66,205.63,9.60951558]
[1755156108359,15.10621557,205.64,205.63,9.60951558]
[1755156111766,15.81621557,205.64,205.62,35.6]
[1755156111966,15.81621557,205.63,205.62,35.6]
[1755156113178,15.10621557,205.63,205.62,35.6]
[1755156113382,25.42573115,205.63,205.59,35.58]
[1755156113574,15.10621557,205.61,205.59,35.58]
[1755156113780,94.20621557,205.6,205.59,45.18951558]
[1755156115465,79.1,205.6,205.59,45.90951558]
[1755156115867,15.10621557,205.64,205.59,45.90951558]
[1755156116169,15.81621557,205.64,205.62,9.60951558]
[1755156116494,20.67912706,205.64,205.59,35.58]
[1755156116685,20.67912706,205.64,205.61,9.60951558]
[1755156117189,15.81621557,205.64,205.62,9.60951558]
[1755156118387,15.81621557,205.64,205.59,35.58]
[1755156118591,15.10621557,205.62,205.61,9.60951558]
[1755156119287,15.81621557,205.62,205.6,9.60951558]
[1755156119880,15.10621557,205.62,205.6,9.60951558]
[1755156120068,0.71,205.61,205.59,45.18951558]
[1755156120396,15.10621557,205.59,205.58,0.03]
[1755156120588,15.79621557,205.59,205.58,0.03]
[1755156120788,79.1,205.6,205.58,9.63951558]
[1755156120993,79.1,205.6,205.59,9.60951558]
[1755156121501,15.10621557,205.67,205.59,10.27951558]
[1755156121670,0.69,205.66,205.6,36.25]
[1755156121877,15.10621557,205.65,205.61,9.60951558]
[1755156122073,15.10621557,205.66,205.61,9.60951558]
[1755156122287,15.10621557,205.63,205.61,9.60951558]
[1755156123097,15.10621557,205.63,205.62,9.60951558]
[1755156123902,13.88900096,205.63,205.58,0.03]
[1755156124074,15.10621557,205.59,205.58,0.03]
[1755156124392,15.79621557,205.59,205.58,0.03]
[1755156125007,25.40573115,205.59,205.58,0.03]
[1755156125187,54.99111599,205.59,205.58,0.03]
[1755156125704,19.38160041,205.59,205.58,0.03]
[1755156125877,28.99111599,205.59,205.58,0.03]
[1755156126398,33.85516579,205.59,205.58,0.03]
[1755156127586,33.85516579,205.59,205.58,1e-08]
[1755156127796,33.85516579,205.59,205.57,1e-08]
[1755156128096,54.99111599,205.58,205.57,1e-08]
[1755156128600,90.55111599,205.58,205.57,1e-08]
[1755156128790,80.94160041,205.58,205.57,1e-08]
[1755156128990,45.38160041,205.58,205.57,1e-08]
[1755156129200,15.79621557,205.58,205.57,1e-08]
[1755156129397,15.10621557,205.58,205.57,1e-08]
[1755156129978,15.10621557,205.58,205.57,9.60951559]
[1755156130174,0.06,205.6,205.57,9.60951559]
[1755156130491,0.06,205.6,205.58,9.60951558]
[1755156130899,15.10621557,205.59,205.57,35.58000001]
[1755156131103,15.10621557,205.59,205.57,45.18951559]
[1755156131602,15.10621557,205.59,205.58,9.60951558]
[1755156131790,0.06,205.6,205.58,9.60951558]
[1755156131988,0.06,205.6,205.59,10.27951558]
[1755156132582,0.06,205.6,205.59,0.67]
[1755156132782,0.06,205.6,205.59,9.60951558]
[1755156132995,0.06,205.6,205.57,35.58000001]
[1755156133199,0.06,205.6,205.58,9.60951558]
[1755156133985,0.06,205.6,205.57,45.18951559]
[1755156134902,15.10621557,205.59,205.57,35.58000001]
[1755156135597,25.40573115,205.58,205.57,1e-08]
[1755156135797,20.66050197,205.58,205.57,1e-08]
[1755156136107,30.27001755,205.58,205.57,1e-08]
[1755156136312,33.85216291,205.58,205.57,1e-08]
[1755156136510,33.85219617,205.58,205.57,1e-08]
[1755156137109,69.41219617,205.58,205.57,1e-08]
[1755156138406,18.68988369,205.58,205.57,9.60951559]
[1755156138608,15.10621557,205.58,205.57,9.60951559]
[1755156139002,15.10621557,205.58,205.57,1e-08]
[1755156139389,19.97050197,205.58,205.57,1e-08]
[1755156140789,19.97050197,205.58,205.57,9.60951559]
[1755156141099,19.97050197,205.58,205.57,1e-08]
[1755156141100,69.41737764,205.58,205.57,1e-08]
[1755156142022,71.36228764,205.58,205.57,1e-08]
[1755156142402,99.07097524,205.56,205.55,0.03]
[1755156142602,112.95785091,205.56,205.55,0.03]
[1755156144105,103.34833533,205.56,205.55,0.03]
[1755156144308,112.95785091,205.56,205.55,0.03]
[1755156145121,69.41785092,205.56,205.55,0.03]
[1755156145294,69.41785092,205.56,205.55,1e-08]
[1755156145827,26.0,205.54,205.53,0.03]
[1755156145994,15.10621557,205.53,205.48,9.60951558]
[1755156146198,15.10621557,205.51,205.5,9.60951558]
[1755156146425,3.58736009,205.51,205.5,10.27951558]
[1755156146598,15.10621557,205.55,205.5,10.27951558]
[1755156146798,15.10621557,205.53,205.52,9.60951558]
[1755156147030,18.70560837,205.53,205.52,9.60951558]
[1755156147204,18.70560837,205.53,205.51,10.27951558]
[1755156147407,3.5993928,205.52,205.51,9.60951558]
[1755156147597,3.5993928,205.54,205.51,10.27951558]
[1755156147805,15.10621557,205.52,205.51,0.67]
[1755156147997,18.70560837,205.52,205.51,10.27951558]
[1755156148522,3.5993928,205.52,205.51,10.27951558]
[1755156148920,15.10621557,205.53,205.51,0.67]
[1755156149127,3.5993928,205.52,205.51,0.67]
[1755156149914,3.5993928,205.54,205.51,0.67]
[1755156150119,3.5993928,205.53,205.51,0.67]
[1755156150536,3.5993928,205.53,205.51,10.27951558]
[1755156150838,3.5993928,205.53,205.51,0.67]
[1755156151005,3.5993928,205.53,205.51,10.27951558]
[1755156151815,3.5993928,205.53,205.51,9.60951558]
[1755156152024,3.5993928,205.53,205.5,9.63951558]
[1755156152228,15.10621557,205.51,205.5,0.03]
[1755156152411,18.70560837,205.51,205.5,0.03]
[1755156152612,18.70560837,205.51,205.5,0.7]
[1755156152817,18.70560837,205.51,205.5,0.03]
[1755156153031,23.57155163,205.51,205.5,0.03]
[1755156153329,15.10621557,205.53,205.5,0.03]
[1755156153533,3.59609157,205.52,205.5,0.03]
[1755156153830,4.27609157,205.52,205.5,0.03]
[1755156154027,3.59609157,205.51,205.5,0.03]
[1755156154522,9.14203483,205.51,205.5,0.03]
[1755156154708,3.59609157,205.51,205.5,0.03]
[1755156155704,28.99182272,205.51,205.5,0.03]
[1755156156505,33.85776598,205.51,205.5,0.03]
[1755156159123,15.10621557,205.47,205.45,9.60951558]
[1755156159323,58.58621557,205.46,205.45,9.60951558]
[1755156159711,58.58621557,205.46,205.45,10.27951558]
[1755156160011,58.58621557,205.46,205.44,35.54]
[1755156160213,43.48,205.46,205.45,9.60951558]
[1755156161641,48.34712999,205.46,205.45,9.60951558]
[1755156162630,43.48,205.46,205.45,9.60951558]
[1755156162835,43.48,205.45,205.44,35.54]
[1755156163735,58.58621557,205.45,205.44,35.54]
[1755156166135,58.58621557,205.45,205.43,6.32944919]
[1755156166334,58.58621557,205.45,205.43,41.86944919]
[1755156166722,65.59566476,205.44,205.34,1.03815611]
[1755156166930,15.10621557,205.41,205.36,6.32944919]
[1755156167245,15.10621557,205.41,205.34,36.57815611]
[1755156167246,15.10621557,205.39,205.34,36.57815611]
[1755156167463,0.68,205.38,205.34,6.6976053]
[1755156167613,65.59566476,205.37,205.34,0.36815611]
[1755156167944,7.00944919,205.36,205.34,0.36815611]
[1755156168115,22.11566476,205.35,205.34,0.36815611]
[1755156168315,10.58979568,205.35,205.29,0.26326101]
[1755156168521,21.43566476,205.3,205.29,0.26326101]
[1755156168743,64.5716562,205.3,205.29,0.26326101]
[1755156169113,68.3786762,205.3,205.29,0.26326101]
[1755156169516,68.3786762,205.3,205.29,1e-08]
[1755156170038,73.2495968,205.3,205.29,1e-08]
[1755156170416,37.7095968,205.3,205.29,1e-08]
[1755156170621,72.5695968,205.3,205.29,1e-08]
[1755156170824,73.2495968,205.3,205.29,1e-08]
[1755156172141,37.0295968,205.3,205.29,1e-08]
[1755156172354,23.55748266,205.3,205.29,1e-08]
[1755156172532,33.2225768,205.3,205.29,1e-08]
[1755156173039,33.9025768,205.3,205.29,1e-08]
[1755156173246,33.2225768,205.3,205.29,1e-08]
[1755156173846,35.54,205.31,205.29,1e-08]
[1755156173847,9.66509414,205.31,205.29,1e-08]
[1755156174147,4.86961857,205.36,205.29,1e-08]
[1755156174345,15.10621557,205.34,205.3,10.33509414]
[1755156174557,15.10621557,205.37,205.33,9.66509414]
[1755156174737,35.54,205.42,205.35,9.66509414]
[1755156175047,9.66509414,205.36,205.32,0.67]
[1755156175245,9.66509414,205.37,205.33,0.67]
[1755156175455,9.66509414,205.34,205.29,0.03000001]
[1755156175755,9.66509414,205.32,205.29,0.03000001]
[1755156175926,9.66509414,205.31,205.29,0.03000001]
[1755156176647,0.68,205.31,205.25,9.66509414]
[1755156176820,15.10621557,205.34,205.25,9.66509414]
[1755156177025,15.10621557,205.32,205.24,35.54]
[1755156177220,9.66509414,205.3,205.24,45.20509414]
[1755156177839,9.66509414,205.3,205.24,35.54]
[1755156178157,14.53640218,205.29,205.24,35.54]
[1755156178526,4.87087083,205.31,205.25,0.56]
[1755156178721,3.54598703,205.3,205.25,0.56]
[1755156179348,13.21108117,205.3,205.25,0.56]
[1755156179555,13.21108117,205.3,205.24,35.54]
[1755156179556,10.34509414,205.29,205.24,35.54]
[1755156180256,9.66509414,205.3,205.24,45.76509414]
[1755156180624,15.10621557,205.31,205.28,9.66509414]
[1755156180961,15.10621557,205.32,205.27,9.66509414]
[1755156181125,15.10621557,205.32,205.27,10.22509414]
[1755156181323,4.87020893,205.33,205.28,9.66509414]
[1755156181561,5.55994529,205.35,205.3,9.66509414]
[1755156181732,3.54721282,205.34,205.3,9.66509414]
[1755156181930,10.35509414,205.33,205.27,9.66509414]
[1755156182159,4.87068335,205.31,205.25,0.56]
[1755156182379,9.66509414,205.31,205.25,10.22509414]
[1755156183360,9.66509414,205.34,205.28,9.66509414]
[1755156183538,3.54635269,205.33,205.28,10.22509414]
[1755156183740,9.66509414,205.33,205.28,0.56]
[1755156184558,4.86995995,205.35,205.28,9.66509414]
[1755156184736,3.54888705,205.34,205.29,0.56]
[1755156185075,9.66509414,205.35,205.3,0.56]
[1755156185235,3.54988076,205.34,205.3,0.56]
[1755156185562,9.66509414,205.35,205.28,10.22509414]
[1755156186039,43.48,205.34,205.29,9.66509414]
[1755156186355,43.48,205.37,205.32,9.66509414]
[1755156186570,43.48,205.37,205.35,9.66509414]
[1755156186771,43.48,205.4,205.36,45.76509414]
[1755156187059,43.48,205.4,205.37,10.22509414]
[1755156187230,43.48,205.4,205.38,9.66509414]
[1755156187435,43.48,205.4,205.39,9.66509414]
[1755156187759,0.06,205.45,205.39,10.22509414]
[1755156188057,0.06,205.45,205.4,9.66509414]
[1755156188251,3.61441281,205.45,205.4,9.66509414]
[1755156188457,18.81962861,205.45,205.39,0.56]
[1755156188769,4.24441281,205.44,205.37,0.56]
[1755156188943,9.64778287,205.41,205.36,35.54]
[1755156189147,10.33778287,205.4,205.34,26.56]
[1755156189468,9.64778287,205.37,205.32,35.54]
[1755156189645,32.14290769,205.44,205.32,35.54]
[1755156189646,13.89438988,205.36,205.32,35.54]
[1755156189835,3.55660701,205.35,205.32,35.54]
[1755156190033,15.79621557,205.42,205.33,0.56]
[1755156190279,3.55748736,205.41,205.33,0.56]
[1755156190939,8.42585108,205.41,205.33,0.56]
[1755156191153,3.55748736,205.4,205.33,5.43016432]
[1755156191483,41.16621557,205.45,205.34,0.56]
[1755156191484,0.06,205.45,205.34,0.56]
[1755156191759,0.06,205.45,205.36,26.0]
[1755156191946,0.06,205.45,205.37,0.56]
[1755156192147,0.06,205.45,205.38,35.54]
[1755156192356,0.06,205.45,205.38,36.1]
[1755156192865,0.06,205.45,205.38,40.96897234]
[1755156193158,0.06,205.45,205.38,36.1]
[1755156193345,0.06,205.45,205.41,26.0]
[1755156193667,0.06,205.45,205.42,0.56]
[1755156193960,0.06,205.45,205.43,0.56]
[1755156194262,0.06,205.45,205.44,36.1]
[1755156194463,0.06,205.45,205.44,35.54]
[1755156196346,0.06,205.45,205.44,40.96760124]
[1755156196543,0.06,205.45,205.44,36.1]
[1755156197860,0.75,205.45,205.37,0.56]
[1755156198060,0.75,205.45,205.38,61.52]
[1755156198362,0.06,205.45,205.39,0.56]
[1755156199251,0.06,205.45,205.4,4.86854917]
[1755156199451,0.75,205.45,205.38,61.52]
[1755156199762,0.75,205.45,205.38,35.52]
[1755156199967,0.75,205.45,205.38,36.08]
[1755156200854,0.75,205.45,205.38,35.52]
[1755156201051,13.21237469,205.44,205.38,35.52]
[1755156201257,18.7697004,205.43,205.38,35.52]
[1755156201577,0.69,205.42,205.38,35.52]
[1755156202077,0.69,205.41,205.38,35.52]
[1755156202282,0.69,205.4,205.38,35.52]
[1755156203281,0.06,205.45,205.38,35.52]
[1755156203577,44.17,205.44,205.38,35.52]
[1755156203754,3.56644534,205.43,205.41,9.64646771]
[1755156204391,13.21293157,205.42,205.26,4.80239951]
[1755156204577,9.64646771,205.38,205.32,9.64646771]
[1755156204891,47.73646386,205.37,205.33,35.52]
[1755156205172,9.12597487,205.36,205.33,35.52]
[1755156205376,0.69,205.36,205.33,35.52]
[1755156205677,0.69,205.35,205.33,35.52]
[1755156205870,0.69,205.34,205.33,35.52]
[1755156206680,0.69,205.34,205.3,9.64646771]
[1755156206849,0.69,205.33,205.29,35.52]
[1755156207055,48.34936063,205.37,205.3,9.64646771]
[1755156207254,4.86973459,205.35,205.3,9.64646771]
[1755156207454,0.69,205.34,205.3,9.64646771]
[1755156208199,4.86973459,205.35,205.3,9.64646771]
[1755156208200,0.69,205.33,205.3,9.64646771]
[1755156208487,0.69,205.32,205.3,9.64646771]
[1755156209287,0.69,205.34,205.31,9.64646771]
[1755156209583,0.69,205.34,205.3,9.64646771]
[1755156209757,0.69,205.34,205.31,9.64646771]
[1755156210278,0.69,205.34,205.29,35.52]
[1755156210478,0.69,205.34,205.3,9.64646771]
[1755156211066,0.69,205.34,205.31,9.64646771]
[1755156211460,0.69,205.34,205.29,35.52]
[1755156211683,0.69,205.34,205.31,9.64646771]
[1755156212267,43.48,205.33,205.31,9.64646771]
[1755156212680,43.48,205.33,205.29,35.52]
[1755156212890,44.19,205.33,205.3,9.64646771]
[1755156213190,44.19,205.33,205.31,9.64646771]
[1755156213703,0.71,205.32,205.31,9.64646771]
[1755156213980,0.71,205.32,205.3,9.64646771]
[1755156214280,0.71,205.31,205.29,35.52]
[1755156214492,49.06023506,205.33,205.3,9.64646771]
[1755156214673,0.71,205.32,205.3,9.64646771]
[1755156215264,0.71,205.32,205.29,35.52]
[1755156215478,0.71,205.32,205.3,9.64646771]
[1755156216264,0.71,205.32,205.31,9.64646771]
[1755156216570,43.48,205.33,205.31,9.64646771]
[1755156216772,43.48,205.37,205.32,6.89597194]
[1755156216978,43.48,205.36,205.35,6.33597194]
[1755156217284,43.48,205.36,205.34,6.33597194]
[1755156217873,43.48,205.36,205.35,6.33597194]
[1755156219386,44.19,205.36,205.34,6.33597194]
[1755156219881,43.48,205.36,205.35,6.33597194]
[1755156220386,43.48,205.36,205.34,6.33597194]
[1755156220777,43.48,205.36,205.35,35.52]
[1755156221382,44.19,205.36,205.35,35.52]
[1755156221584,52.6302895,205.36,205.31,6.33597194]
[1755156221795,10.61663153,205.35,205.32,35.5]
[1755156221980,50.52597194,205.35,205.3,35.5]
[1755156222286,0.71,205.34,205.3,35.5]
[1755156222787,0.71,205.33,205.3,35.5]
[1755156223284,0.71,205.32,205.3,35.5]
[1755156224479,43.48,205.35,205.31,6.33597194]
[1755156224684,43.48,205.34,205.31,6.33597194]
[1755156224997,42.54597194,205.37,205.33,6.33597194]
[1755156224998,43.48,205.37,205.33,6.33597194]
[1755156225305,43.48,205.37,205.36,6.33597194]
[1755156225476,14.596054,205.43,205.36,11.20546339]
[1755156225675,0.06,205.45,205.42,6.33597194]
[1755156225897,0.06,205.45,205.44,6.33597194]
[1755156226214,0.06,205.45,205.44,42.39597194]
[1755156226491,0.06,205.45,205.44,41.83597194]
[1755156228397,0.06,205.45,205.44,35.5]
[1755156228724,0.06,205.45,205.44,50.56815247]
[1755156230982,0.06,205.45,205.44,60.2087037]
[1755156231178,0.06,205.48,205.44,60.2087037]
[1755156231482,0.06,205.5,205.47,35.64055123]
[1755156231689,0.06,205.52,205.51,26.0]
[1755156231899,0.06,205.52,205.51,76.54649449]
[1755156232401,0.06,205.58,205.51,76.54649449]
[1755156232590,0.06,205.58,205.57,9.64055123]
[1755156232790,0.06,205.58,205.57,45.12055123]
[1755156233903,0.06,205.58,205.57,50.54507426]
[1755156234089,0.06,205.6,205.57,50.54507426]
[1755156234401,0.06,205.6,205.59,9.64055123]
[1755156234587,0.06,205.6,205.59,55.32110246]
[1755156234787,0.06,205.6,205.59,45.68055123]
[1755156235107,0.06,205.6,205.59,55.32110246]
[1755156235308,0.06,205.6,205.59,45.68055123]
[1755156235900,0.06,205.63,205.6,4.86381322]
[1755156236102,0.06,205.63,205.62,9.64055123]
[1755156236287,0.06,205.63,205.62,10.20055123]
[1755156237300,0.06,205.63,205.62,9.64055123]
[1755156238406,0.06,205.63,205.62,35.64055123]
[1755156238700,0.06,205.63,205.62,71.10055123]
[1755156240198,0.06,205.65,205.64,26.0]
[1755156240409,0.06,205.69,205.67,26.0]
[1755156240589,0.06,205.69,205.68,9.64055123]
[1755156240779,0.06,205.69,205.68,45.10055123]
[1755156240985,0.06,205.69,205.68,45.08055123]
[1755156241981,0.06,205.73,205.71,26.0]
[1755156242195,0.06,205.73,205.72,45.08055123]
[1755156242393,0.06,205.73,205.72,45.64055123]
[1755156243086,0.06,205.77,205.75,26.0]
[1755156243292,0.06,205.77,205.76,55.28110246]
[1755156243496,0.06,205.77,205.76,45.08055123]
[1755156243799,0.06,205.77,205.76,35.44]
[1755156243997,0.06,205.77,205.76,71.08055123]
[1755156244408,0.06,205.78,205.76,81.28110246]
[1755156244594,0.06,205.78,205.77,10.20055123]
[1755156244909,0.06,205.86,205.8,26.0]
[1755156245112,0.06,205.86,205.83,9.64055123]
[1755156245286,0.06,205.86,205.83,45.08055123]
[1755156245487,0.06,205.86,205.85,26.0]
[1755156245684,0.06,205.86,205.85,75.6049588]
[1755156245908,0.06,205.86,205.85,75.0449588]
[1755156246315,0.06,205.86,205.85,80.46286504]
[1755156247105,0.06,205.88,205.85,75.0449588]
[1755156247315,0.06,205.94,205.9,26.0]
[1755156247515,0.06,205.94,205.93,9.64055123]
[1755156247821,0.06,205.94,205.93,45.06055123]
[1755156249206,0.72,206.04,205.96,26.0]
[1755156249420,0.72,206.04,206.0,26.0]
[1755156249584,0.72,206.06,206.03,9.64055123]
[1755156249783,0.72,206.05,206.04,35.42]
[1755156250005,0.72,206.05,206.04,45.06055123]
[1755156250213,0.72,206.08,206.04,45.06055123]
[1755156250395,0.72,206.08,206.07,9.64055123]
[1755156250592,0.72,206.08,206.07,45.06055123]
[1755156250990,14.544397,206.16,206.07,45.06055123]
[1755156251191,0.72,206.11,206.09,9.64055123]
[1755156251415,15.10621557,206.14,206.1,45.04055123]
[1755156251711,14.49158038,206.15,206.1,35.4]
[1755156251895,4.85102915,206.15,206.1,45.04055123]
[1755156252097,15.10621557,206.13,206.1,35.4]
[1755156252312,5.57154279,206.12,206.06,9.64055123]
[1755156252497,0.72,206.11,206.08,9.64055123]
[1755156252813,15.10621557,206.09,206.06,35.4]
[1755156252990,0.72,206.08,206.06,35.4]
[1755156253308,4.85138051,206.13,206.06,35.4]
[1755156253309,0.72,206.07,206.06,35.4]
[1755156253891,15.10621557,206.12,206.06,45.04055123]
[1755156254205,0.72,206.11,206.1,9.64055123]
[1755156254392,0.72,206.11,206.1,35.4]
[1755156254789,0.72,206.13,206.1,45.04055123]
[1755156255121,0.72,206.17,206.12,9.64055123]
[1755156255413,15.10621557,206.19,206.16,9.64055123]
[1755156255587,4.84942534,206.21,206.16,9.64055123]
[1755156255588,4.84942534,206.21,206.17,9.64055123]
[1755156255795,15.10621557,206.2,206.17,9.64055123]
[1755156255993,0.72,206.19,206.17,9.64055123]
[1755156256227,5.56993259,206.19,206.16,35.42]
[1755156256519,24.7467668,206.18,206.09,26.0]
[1755156256703,0.72,206.17,206.14,9.64055123]
[1755156256898,0.72,206.17,206.14,35.4]
[1755156257097,15.82621557,206.2,206.14,35.4]
[1755156257318,0.72,206.19,206.15,9.64055123]
[1755156257515,0.72,206.18,206.15,9.64055123]
[1755156257718,0.72,206.17,206.14,35.4]
[1755156258019,15.10621557,206.16,206.14,35.4]
[1755156258193,0.72,206.15,206.14,35.4]
[1755156258395,0.72,206.18,206.14,45.04055123]
[1755156258732,0.72,206.18,206.16,9.64055123]
[1755156259191,19.9559531,206.2,206.14,35.4]
[1755156259192,0.72,206.17,206.15,9.64055123]
[1755156260213,0.72,206.17,206.16,9.64055123]
[1755156260702,0.72,206.17,206.14,45.04055123]
[1755156261008,0.72,206.16,206.14,45.04055123]
[1755156261197,0.72,206.17,206.15,9.64055123]
[1755156261604,20.67591525,206.2,206.16,9.64055123]
[1755156261825,0.72,206.19,206.16,9.64055123]
[1755156262322,5.56992479,206.19,206.14,35.4]
[1755156262528,0.72,206.18,206.15,9.64055123]
[1755156263103,0.72,206.17,206.15,9.64055123]
[1755156263431,0.72,206.16,206.15,9.64055123]
[1755156263930,5.56992479,206.19,206.15,9.64055123]
[1755156264228,5.56992479,206.19,206.14,35.4]
[1755156264429,0.06,206.17,206.14,35.4]
[1755156264942,0.72,206.16,206.15,9.64055123]
[1755156265301,0.72,206.16,206.14,35.4]
[1755156265498,0.72,206.15,206.08,31.41244911]
[1755156265722,0.06,206.17,206.14,9.64055123]
[1755156265929,0.78,206.17,206.16,9.64055123]
[1755156266108,0.06,206.17,206.15,35.36]
[1755156266303,0.78,206.17,206.15,35.36]
[1755156266713,0.06,206.17,206.15,35.36]
[1755156267029,0.72,206.16,206.15,35.36]
[1755156267402,0.06,206.17,206.15,45.00055123]
[1755156267603,0.72,206.16,206.15,35.36]
[1755156267917,0.06,206.17,206.15,35.36]
[1755156268114,0.06,206.17,206.16,9.64055123]
[1755156269216,0.06,206.17,206.15,35.36]
[1755156269408,0.06,206.17,206.06,3.91353191]
[1755156269409,0.72,206.16,206.06,3.91353191]
[1755156269714,9.64055123,206.11,206.05,9.64055123]
[1755156269913,10.36055123,206.1,206.06,35.34]
[1755156270131,10.36055123,206.1,206.07,35.34]
[1755156270132,0.72,206.1,206.07,35.34]
[1755156270306,0.69,206.09,206.07,35.34]
[1755156270502,0.69,206.08,206.07,35.34]
[1755156270845,5.54201358,206.1,206.07,35.34]
[1755156271139,0.69,206.09,206.07,35.34]
[1755156271307,4.85201358,206.1,206.07,35.34]
[1755156271507,0.69,206.08,206.07,35.34]
[1755156272242,0.69,206.08,206.05,9.64055123]
[1755156272534,0.69,206.07,206.05,9.64055123]
[1755156272712,0.69,206.06,206.04,44.98055123]
[1755156272906,19.95856119,206.09,206.04,44.98055123]
[1755156273315,0.69,206.08,206.04,44.98055123]
[1755156273710,4.85177817,206.11,206.04,35.34]
[1755156273924,0.69,206.12,206.04,35.34]
[1755156273925,0.69,206.12,206.08,9.64055123]
[1755156274137,0.69,206.12,206.08,35.34]
[1755156274316,0.69,206.12,206.1,9.64055123]
[1755156275315,4.85107749,206.14,206.1,9.64055123]
[1755156275316,15.10621557,206.13,206.1,9.64055123]
[1755156275537,15.79621557,206.13,206.08,35.34]
[1755156275733,0.69,206.12,206.1,9.64055123]
[1755156276418,15.10621557,206.13,206.1,9.64055123]
[1755156276723,15.10621557,206.13,206.08,35.34]
[1755156276906,4.85111736,206.14,206.11,9.64055123]
[1755156277109,0.69,206.13,206.11,9.64055123]
[1755156277455,0.69,206.16,206.12,44.98055123]
[1755156277742,0.06,206.17,206.06,26.56]
[1755156277743,0.06,206.17,206.15,9.64055123]
[1755156277947,0.06,206.17,206.16,44.98055123]
[1755156280124,0.06,206.17,206.16,45.54055123]
[1755156281921,0.06,206.21,206.19,26.0]
[1755156282109,0.06,206.21,206.16,50.3911527]
[1755156282110,0.06,206.21,206.2,45.54055123]
[1755156282711,0.06,206.21,206.2,44.98055123]
[1755156283732,0.06,206.21,206.2,45.54055123]
[1755156284032,0.75,206.21,206.18,9.64055123]
[1755156284232,4.2265175,206.2,206.19,44.98055123]
[1755156284440,3.5365175,206.2,206.19,35.34]
[1755156284647,3.5365175,206.2,206.19,44.98055123]
[1755156287619,3.5365175,206.2,206.19,45.54055123]
[1755156287916,3.5365175,206.2,206.19,50.39044695]
[1755156288325,0.06,206.21,206.19,50.39044695]
[1755156288521,0.06,206.23,206.22,26.0]
[1755156288825,0.06,206.23,206.22,70.98055123]
[1755156289422,0.06,206.23,206.22,70.96055123]
[1755156290121,0.75,206.23,206.16,0.56]
[1755156290314,0.75,206.23,206.2,26.0]
[1755156290515,0.69,206.22,206.21,35.32]
[1755156290724,15.79621557,206.22,206.21,35.32]
[1755156290933,20.64540575,206.22,206.21,35.32]
[1755156291543,15.10621557,206.21,206.14,0.03]
[1755156291723,15.10621557,206.21,206.17,9.64055123]
[1755156291924,0.69,206.2,206.18,35.32]
[1755156292228,15.10621557,206.18,206.14,0.03]
[1755156292556,15.10621557,206.16,206.14,0.03]
[1755156292717,15.10621557,206.14,206.12,0.03]
[1755156293047,20.64752299,206.13,206.12,0.03]
[1755156293628,15.79621557,206.13,206.12,0.03]
[1755156294530,30.28807422,206.13,206.12,0.03]
[1755156294753,15.10621557,206.12,206.05,35.32]
[1755156294921,42.41634278,206.13,206.05,35.32]
[1755156294922,15.10621557,206.08,206.05,35.32]
[1755156295124,15.10621557,206.12,206.06,9.64055123]
[1755156295332,0.69,206.1,206.08,9.64055123]
[1755156295528,15.79621557,206.09,206.05,35.32]
[1755156295734,0.69,206.08,206.07,9.64055123]